bitfinex/quotes_SOLUSD_20251127
["timestamp","ask_amount","ask_price","bid_price","bid_amount"]
[1764266400832,2.65999999,141.67,141.66,3.68636957]
[1764266401038,5.75999999,141.67,141.66,3.68636957]
[1764266401219,5.75999999,141.67,141.66,10.74552529]
[1764266401418,1.99999999,141.67,141.66,3.68636957]
[1764266401629,1.99999999,141.67,141.66,6.10769369]
[1764266401630,5.09999999,141.67,141.66,6.10769369]
[1764266401831,1.99999999,141.67,141.66,13.16684941]
[1764266402317,1.99999999,141.67,141.66,11.42552529]
[1764266402513,1.99999999,141.67,141.66,13.16684941]
[1764266403540,2.65999999,141.67,141.66,10.74552529]
[1764266403738,2.65999999,141.67,141.66,3.68636957]
[1764266404040,2.65999999,141.67,141.66,10.74552529]
[1764266405014,2.65999999,141.67,141.66,12.48684941]
[1764266406138,5.75999999,141.67,141.66,10.74552529]
[1764266406352,5.09999999,141.67,141.66,10.74552529]
[1764266408244,5.78999999,141.67,141.66,10.74552529]
[1764266409140,5.78999999,141.67,141.66,12.48684941]
[1764266412447,5.78999999,141.67,141.66,3.68636957]
[1764266412645,1.99999999,141.64,141.63,12.48946194]
[1764266412949,1.99999999,141.64,141.63,13.20901809]
[1764266413530,1.99999999,141.64,141.63,10.74779667]
[1764266413737,1.99999999,141.64,141.63,13.15912079]
[1764266414921,5.09999999,141.66,141.63,13.15912079]
[1764266415143,5.09999999,141.66,141.65,1.74132412]
[1764266415542,5.09999999,141.66,141.65,2.41132412]
[1764266416453,1.99999999,141.66,141.65,2.41132412]
[1764266416766,1.99999999,141.68,141.65,25.77984219]
[1764266416930,1.99999999,141.68,141.67,1.74132412]
[1764266417451,2.68999999,141.68,141.67,1.74132412]
[1764266418468,1.99999999,141.67,141.66,1.74132412]
[1764266418642,1.99999999,141.65,141.64,7.05995601]
[1764266419043,2.68999999,141.65,141.64,7.05995601]
[1764266419959,1.99999999,141.65,141.64,7.05995601]
[1764266420164,1.99999999,141.65,141.64,8.80128013]
[1764266420856,1.99999999,141.65,141.64,9.47128013]
[1764266422856,2.68999999,141.65,141.63,3.68714568]
[1764266423065,20.44358309,141.64,141.63,3.68714568]
[1764266423260,1.99999999,141.64,141.63,5.4284698]
[1764266423453,1.99999999,141.64,141.63,6.0984698]
[1764266423651,1.99999999,141.65,141.63,13.15912079]
[1764266423852,1.99999999,141.65,141.64,2.41132412]
[1764266424663,1.99999999,141.68,141.64,18.72018812]
[1764266424864,1.99999999,141.68,141.67,1.74132412]
[1764266425164,1.99999999,141.68,141.67,8.79998156]
[1764266425537,1.99999999,141.68,141.67,9.46998156]
[1764266426147,1.99999999,141.68,141.67,8.79998156]
[1764266428303,2.68999999,141.69,141.67,8.79998156]
[1764266428448,1.99999999,141.68,141.67,7.05865744]
[1764266429069,1.99999999,141.67,141.66,7.05915572]
[1764266429271,2.68999999,141.67,141.66,7.05915572]
[1764266429770,2.68999999,141.67,141.66,8.80047984]
[1764266431271,1.99999999,141.67,141.66,8.80047984]
[1764266432377,1.99999999,141.66,141.65,7.0594506]
[1764266432579,1.99999999,141.66,141.65,7.7294506]
[1764266433449,1.99999999,141.66,141.65,9.47077472]
[1764266434747,1.99999999,141.68,141.65,27.11990991]
[1764266434947,1.99999999,141.68,141.67,1.74132412]
[1764266435548,1.99999999,141.68,141.67,2.41132412]
[1764266436974,1.99999999,141.66,141.65,26.45011338]
[1764266438052,1.99999999,141.66,141.65,27.12011338]
[1764266443482,2.65999999,141.66,141.65,8.80097819]
[1764266446552,2.65999999,141.66,141.65,9.78206016]
[1764266446869,1.99999999,141.66,141.65,10.45206016]
[1764266447273,1.99999999,141.66,141.65,9.78206016]
[1764266449483,1.99999999,141.66,141.65,7.05965407]
[1764266449685,1.99999999,141.66,141.65,9.78206016]
[1764266449982,1.99999999,141.66,141.65,10.45206016]
[1764266453306,1.99999999,141.66,141.65,9.78206016]
[1764266453667,1.99999999,141.66,141.65,10.45206016]
[1764266461395,751.48730446,141.67,141.65,7.05965407]
[1764266461396,753.48730445,141.67,141.65,7.05965407]
[1764266461599,2.65999999,141.66,141.65,9.78206016]
[1764266462280,1.99999999,141.66,141.65,9.78206016]
[1764266462593,2.65999999,141.66,141.65,9.78206016]
[1764266463397,2.65999999,141.66,141.64,19.03127009]
[1764266463580,3.76,141.65,141.64,19.03127009]
[1764266463775,3.76,141.65,141.64,26.09142258]
[1764266463975,5.75999999,141.65,141.64,26.09142258]
[1764266464695,1.99999999,141.65,141.64,26.76142258]
[1764266465078,1.99999999,141.65,141.64,26.09142258]
[1764266465393,2.65999999,141.65,141.64,26.09142258]
[1764266467101,0.66,141.65,141.64,26.09142258]
[1764266467402,2.65999999,141.65,141.64,26.09142258]
[1764266469889,5.09999999,141.66,141.64,26.76142258]
[1764266470208,5.09999999,141.66,141.65,3.39240609]
[1764266470500,751.48730446,141.67,141.65,3.39240609]
[1764266470683,751.48730446,141.67,141.64,41.01939773]
[1764266470684,751.48730446,141.67,141.66,3.39240609]
[1764266471206,751.48730446,141.67,141.66,19.70127009]
[1764266471909,751.48730446,141.67,141.66,26.76042581]
[1764266473510,751.48730446,141.67,141.66,29.4828319]
[1764266473810,751.48730446,141.67,141.66,26.76042581]
[1764266481219,751.48730446,141.67,141.66,29.4828319]
[1764266481403,751.48730446,141.67,141.66,26.76042581]
[1764266483520,751.48730446,141.67,141.66,26.79042581]
[1764266485224,751.48730446,141.67,141.66,26.09042581]
[1764266485405,752.16730446,141.67,141.66,26.09042581]
[1764266485931,755.26730446,141.67,141.66,26.09042581]
[1764266487527,757.26730445,141.67,141.66,9.78156181]
[1764266495706,757.26730445,141.67,141.66,2.72240609]
[1764266496108,764.32596189,141.67,141.66,2.72240609]
[1764266496414,1.99999999,141.64,141.63,3.68714568]
[1764266496732,5.09999999,141.64,141.63,6.40955177]
[1764266496926,5.77999999,141.64,141.63,6.40955177]
[1764266499619,5.77999999,141.64,141.63,3.68714568]
[1764266502731,2.67999999,141.64,141.63,3.68714568]
[1764266503029,5.77999999,141.64,141.63,3.68714568]
[1764266504038,6.66251905,141.64,141.63,3.68714568]
[1764266505234,12.37246397,141.64,141.63,3.68714568]
[1764266505442,15.47246397,141.64,141.63,3.68714568]
[1764266511628,15.25359997,141.64,141.63,3.68714568]
[1764266516544,15.03473597,141.64,141.63,3.68714568]
[1764266518246,15.03473597,141.64,141.63,3.51714568]
[1764266519044,11.93473597,141.64,141.63,3.51714568]
[1764266519343,4.66227199,141.64,141.63,12.32115847]
[1764266520021,4.44340799,141.64,141.63,12.32115847]
[1764266520449,5.12340799,141.64,141.63,12.32115847]
[1764266521342,4.44340799,141.64,141.63,12.32115847]
[1764266522624,5.12340799,141.64,141.63,12.32115847]
[1764266522826,4.44340799,141.64,141.63,12.32115847]
[1764266523549,4.22454399,141.64,141.63,12.32115847]
[1764266524645,4.90454399,141.64,141.63,12.32115847]
[1764266525349,4.90454399,141.64,141.63,10.57779667]
[1764266525535,4.90454399,141.64,141.63,3.51714568]
[1764266525738,4.90454399,141.64,141.63,10.57779667]
[1764266526948,4.68567999,141.64,141.63,12.32115847]
[1764266529255,13.77994805,141.64,141.63,3.51714568]
[1764266529553,20.84010054,141.64,141.63,3.51714568]
[1764266529730,34.62004859,141.64,141.63,3.51714568]
[1764266530248,27.5598961,141.64,141.63,3.51714568]
[1764266530430,13.77994805,141.64,141.63,3.51714568]
[1764266530738,22.36600859,141.64,141.63,3.51714568]
[1764266533862,22.14714459,141.64,141.63,3.51714568]
[1764266536959,13.34222005,141.64,141.63,3.51714568]
[1764266537360,13.12335605,141.64,141.63,3.51714568]
[1764266538065,8.80994492,141.63,141.61,8.80493865]
[1764266538257,3.98264369,141.62,141.61,9.52493865]
[1764266538459,3.98264369,141.62,141.61,7.78157685]
[1764266538664,3.98264369,141.62,141.61,9.52493865]
[1764266539267,4.23173168,141.62,141.61,9.52493865]
[1764266539842,4.23173168,141.62,141.61,8.80493865]
[1764266540465,4.23173168,141.62,141.61,7.06157685]
[1764266540651,4.23173168,141.62,141.61,8.80493865]
[1764266540847,4.01283668,141.62,141.61,7.06157685]
[1764266541067,4.01283668,141.62,141.61,8.80493865]
[1764266541845,0.91283668,141.62,141.61,8.80493865]
[1764266542163,4.01283668,141.62,141.61,8.80493865]
[1764266542581,0.91283668,141.62,141.61,9.52493865]
[1764266542737,0.24908799,141.63,141.61,16.49838585]
[1764266543060,3.34908799,141.64,141.63,16.308864]
[1764266543250,3.34908799,141.64,141.63,18.0522258]
[1764266543450,3.34908799,141.64,141.63,18.7722258]
[1764266544563,3.13022399,141.64,141.63,18.7722258]
[1764266545269,3.13022399,141.64,141.63,25.83287679]
[1764266545770,3.1,141.66,141.63,43.48450427]
[1764266545967,3.1,141.66,141.65,1.7433618]
[1764266546366,3.1,141.66,141.65,2.4633618]
[1764266546949,3.1,141.66,141.65,9.52301587]
[1764266553882,3.8,141.66,141.65,8.80301587]
[1764266555359,3.8,141.66,141.63,34.68049148]
[1764266555559,3.8,141.66,141.65,1.7433618]
[1764266556879,3.8,141.66,141.65,8.80301587]
[1764266558879,3.1,141.66,141.65,8.80301587]
[1764266559264,3.1,141.66,141.65,9.52301587]
[1764266561283,3.1,141.66,141.65,8.80301587]
[1764266561665,3.81,141.66,141.65,8.80301587]
[1764266561981,3.1,141.66,141.65,8.80301587]
[1764266563785,3.1,141.66,141.65,9.52301587]
[1764266565187,3.1,141.66,141.65,8.80301587]
[1764266565987,3.1,141.66,141.65,9.52301587]
[1764266566567,3.1,141.66,141.65,8.80301587]
[1764266566969,3.1,141.66,141.65,9.52301587]
[1764266568286,799.84574246,141.67,141.65,9.52301587]
[1764266568470,737.79623379,141.67,141.66,4.2067236]
[1764266568670,580.40999614,141.67,141.66,4.2067236]
[1764266569082,580.40999614,141.67,141.66,11.26587932]
[1764266569286,545.78014263,141.67,141.66,11.26587932]
[1764266570362,511.15028912,141.67,141.66,27.57474332]
[1764266570569,487.33501901,141.67,141.66,13.21936826]
[1764266571486,430.17837073,141.67,141.66,13.21936826]
[1764266572378,396.83699256,141.67,141.66,13.21936826]
[1764266572687,373.02172245,141.67,141.66,13.21936826]
[1764266573386,283.90040446,141.67,141.66,13.21936826]
[1764266573586,3.1,141.72,141.69,16.308864]
[1764266573783,3.1,141.72,141.71,19.02897027]
[1764266574280,3.1,141.72,141.71,19.74897027]
[1764266574902,3.1,141.72,141.71,19.02897027]
[1764266575101,3.1,141.72,141.71,26.08563529]
[1764266576798,0.71,141.73,141.71,26.08563529]
[1764266576992,3.81,141.73,141.72,2.72010627]
[1764266579476,3.81,141.73,141.72,9.77627336]
[1764266580502,3.81,141.73,141.72,7.05616709]
[1764266581377,0.71,141.73,141.72,7.05616709]
[1764266581577,3.1,141.73,141.72,7.05616709]
[1764266583592,3.1,141.73,141.72,9.77627336]
[1764266584601,3.81,141.73,141.72,7.05616709]
[1764266584779,3.81,141.73,141.71,26.08540002]
[1764266584986,0.71,141.72,141.71,23.36529375]
[1764266585305,1.59202088,141.72,141.68,18.36485771]
[1764266585601,1.59202088,141.72,141.68,17.64485771]
[1764266585925,1.59202088,141.72,141.69,7.05746536]
[1764266585926,0.71,141.71,141.69,7.05746536]
[1764266586409,1.59195865,141.73,141.71,16.308864]
[1764266586585,12.61994492,141.75,141.72,2.72010627]
[1764266587094,1.59189643,141.74,141.7,2.72010627]
[1764266587493,9.51994492,141.73,141.69,19.02897027]
[1764266587797,8.80994492,141.72,141.68,24.70332846]
[1764266588103,8.80994492,141.7,141.67,23.36737519]
[1764266588408,8.80994492,141.7,141.66,17.64722248]
[1764266588409,11.53005119,141.7,141.66,7.05892728]
[1764266588612,0.71,141.69,141.66,7.05892728]
[1764266589280,0.71,141.69,141.65,2.72010627]
[1764266589281,8.80994492,141.68,141.65,7.05946037]
[1764266589481,3.1,141.67,141.65,7.05946037]
[1764266589698,3.81,141.67,141.65,7.05946037]
[1764266589909,0.71,141.66,141.65,7.05946037]
[1764266590289,3.1,141.67,141.65,7.05946037]
[1764266590290,3.79,141.67,141.65,7.05946037]
[1764266590934,3.79,141.67,141.65,9.77956664]
[1764266591213,3.1,141.67,141.65,10.45956664]
[1764266591414,3.79,141.67,141.65,9.77956664]
[1764266593712,3.1,141.67,141.65,9.77956664]
[1764266593910,3.1,141.67,141.65,10.45956664]
[1764266596717,0.88202088,141.72,141.68,16.308864]
[1764266596897,2.72010627,141.73,141.71,2.72010627]
[1764266596898,1.58195865,141.73,141.71,2.72010627]
[1764266597512,0.7,141.72,141.71,2.72010627]
[1764266598733,0.7,141.72,141.71,9.77677129]
[1764266598942,12.60994492,141.74,141.71,10.46677129]
[1764266599231,7.801691,141.74,141.72,2.72010627]
[1764266599431,4.701691,141.74,141.71,28.10843384]
[1764266599611,3.1,141.73,141.71,28.10843384]
[1764266599813,3.1,141.73,141.72,2.72010627]
[1764266600953,3.1,141.73,141.72,9.77627336]
[1764266602132,3.1,141.73,141.72,2.72010627]
[1764266602309,3.1,141.73,141.72,9.77627336]
[1764266604239,6.28358743,141.74,141.72,9.77627336]
[1764266604432,3.1,141.73,141.72,9.77627336]
[1764266611048,3.8,141.73,141.72,7.05616709]
[1764266611219,3.1,141.73,141.72,9.77627336]
[1764266611645,3.98195865,141.73,141.72,9.77627336]
[1764266611842,3.1,141.73,141.72,9.77627336]
[1764266612221,3.1,141.73,141.72,7.05616709]
[1764266612422,3.1,141.73,141.72,9.77627336]
[1764266620039,3.1,141.73,141.72,2.72010627]
[1764266620242,3.8,141.73,141.72,2.72010627]
[1764266620423,3.1,141.73,141.72,2.72010627]
[1764266621441,12.60994492,141.73,141.71,2.72010627]
[1764266621768,10.3919658,141.72,141.71,2.72010627]
[1764266623322,9.6919658,141.72,141.71,2.72010627]
[1764266624750,3.1,141.72,141.71,19.70897027]
[1764266625053,3.1,141.72,141.71,26.76563529]
[1764266625223,0.88183421,141.75,141.71,26.76563529]
[1764266625224,3.1,141.73,141.71,26.76563529]
[1764266625426,3.1,141.73,141.72,3.40010627]
[1764266626640,3.1,141.73,141.72,10.45627336]
[1764266632650,3.1,141.73,141.72,9.47675273]
[1764266635875,0.88183421,141.75,141.72,9.47675273]
[1764266636078,1e-08,141.78,141.75,16.308864]
[1764266636253,1.12000001,141.78,141.77,1.74058564]
[1764266636974,1e-08,141.78,141.77,1.74058564]
[1764266637171,3.10000001,141.78,141.77,1.74058564]
[1764266638179,3.10000001,141.78,141.77,8.79426413]
[1764266639975,1e-08,141.78,141.77,9.47426413]
[1764266643462,1e-08,141.78,141.77,1.74058564]
[1764266643663,1e-08,141.78,141.77,2.42058564]
[1764266644357,1e-08,141.78,141.77,9.47426413]
[1764266645194,10.39159255,141.78,141.75,1.74058564]
[1764266645553,10.39159255,141.78,141.76,1.74058564]
[1764266647281,0.71,141.77,141.74,7.05499001]
[1764266647579,12.79171692,141.76,141.73,1.74058564]
[1764266647957,0.71,141.75,141.73,1.74058564]
[1764266654591,19.84594267,141.76,141.73,1.74058564]
[1764266654794,20.55594267,141.76,141.73,2.42058564]
[1764266656894,9.69171692,141.76,141.74,2.40058564]
[1764266657102,11.90994492,141.75,141.74,2.40058564]
[1764266658774,11.90994492,141.75,141.73,2.40058564]
[1764266659188,18.96462463,141.75,141.73,2.40058564]
[1764266659403,19.84645884,141.75,141.73,2.40058564]
[1764266659700,12.79177913,141.75,141.73,1.74058564]
[1764266659997,12.79177913,141.75,141.73,2.40058564]
[1764266660487,3.1,141.74,141.73,2.40058564]
[1764266660914,3.1,141.74,141.71,7.05651116]
[1764266661069,0.88195865,141.73,141.71,9.4570968]
[1764266663996,0.88195865,141.73,141.71,7.05651116]
[1764266664494,1.54195865,141.73,141.7,0.66]
[1764266664689,9.0815738,141.71,141.67,1.74058564]
[1764266664913,9.0815738,141.71,141.66,2.40058564]
[1764266664914,11.90994492,141.7,141.66,2.40058564]
[1764266665075,0.28432314,141.69,141.65,1.74058564]
[1764266665372,8.80994492,141.68,141.65,1.74058564]
[1764266665571,8.80994492,141.68,141.66,0.66]
[1764266665572,3.1,141.67,141.66,0.66]
[1764266666982,3.1,141.67,141.66,9.45974136]
[1764266667409,8.80994492,141.71,141.66,9.45974136]
[1764266667410,3.1,141.68,141.66,9.45974136]
[1764266667706,3.1,141.68,141.67,2.40058564]
[1764266669590,3.1,141.68,141.67,9.45924308]
[1764266670610,3.1,141.68,141.67,7.71865744]
[1764266670784,3.1,141.68,141.67,9.45924308]
[1764266672020,0.88195865,141.73,141.67,43.41475068]
[1764266672197,3.1,141.71,141.68,0.66]
[1764266673414,3.1,141.71,141.7,1.74058564]
[1764266673743,3.1,141.71,141.7,8.79774866]
[1764266673944,3.1,141.71,141.7,9.45774866]
[1764266674309,3.1,141.71,141.68,8.7985794]
[1764266674622,0.66,141.7,141.68,8.7985794]
[1764266674821,4.64208312,141.71,141.68,8.7985794]
[1764266675023,4.64208312,141.71,141.69,1.74058564]
[1764266675941,4.64208312,141.71,141.69,8.79824135]
[1764266676430,0.66,141.7,141.69,8.79824135]
[1764266676609,4.64208312,141.71,141.69,8.79824135]
[1764266677942,3.98208312,141.71,141.69,8.79824135]
[1764266679530,3.98208312,141.71,141.69,7.05765571]
[1764266681516,3.1,141.71,141.69,9.47824135]
[1764266681728,10.3719658,141.72,141.69,9.47824135]
[1764266681929,3.1,141.71,141.69,9.47824135]
[1764266683239,3.1,141.71,141.69,8.79824135]
[1764266684143,3.1,141.71,141.69,9.47824135]
[1764266685244,3.1,141.71,141.69,7.73765571]
[1764266685448,3.1,141.71,141.69,9.47824135]
[1764266687238,3.1,141.71,141.69,9.27824135]
[1764266690748,3.1,141.71,141.69,9.07824135]
[1764266692651,3.1,141.71,141.69,10.05893133]
[1764266694346,3.1,141.71,141.69,9.85893133]
[1764266696244,3.1,141.7,141.69,9.85893133]
[1764266697629,3.1,141.7,141.69,9.65893133]
[1764266700429,3.1,141.7,141.68,2.72127562]
[1764266700430,3.78,141.7,141.68,2.72127562]
[1764266700642,3.98214537,141.7,141.67,3.40127562]
[1764266700934,4.66214537,141.7,141.67,3.40127562]
[1764266701130,0.88208312,141.71,141.69,2.72127562]
[1764266701336,8.80994492,141.73,141.7,2.72127562]
[1764266701535,1.024058,141.74,141.72,2.72127562]
[1764266701838,3.1,141.73,141.72,2.52127562]
[1764266702040,1.56189643,141.74,141.72,2.52127562]
[1764266702246,3.1,141.73,141.72,2.52127562]
[1764266703433,9.09426806,141.72,141.68,3.40127562]
[1764266703633,0.88208312,141.71,141.68,3.40127562]
[1764266703956,11.90994492,141.7,141.67,2.72127562]
[1764266704130,12.58994492,141.7,141.67,3.40127562]
[1764266704736,12.58994492,141.7,141.67,3.20127562]
[1764266704936,0.68,141.69,141.66,2.72127562]
[1764266705247,18.96734468,141.7,141.67,2.72127562]
[1764266705556,19.64734468,141.7,141.67,3.40127562]
[1764266705752,19.64734468,141.7,141.66,9.78030041]
[1764266705957,19.64734468,141.7,141.66,10.46030041]
[1764266706258,0.88220763,141.69,141.66,10.46030041]
[1764266706863,8.61991587,141.69,141.66,3.40127562]
[1764266708249,8.61991587,141.69,141.65,7.05944794]
[1764266708250,9.09426806,141.68,141.65,2.72127562]
[1764266708441,3.1,141.67,141.66,0.68]
[1764266709045,3.1,141.67,141.65,3.40127562]
[1764266709768,20.52041925,141.76,141.65,2.72127562]
[1764266709966,2.72127562,142.11,141.76,21.21]
[1764266710264,0.66480783,142.1,142.09,16.308864]
[1764266710465,3.88480783,142.1,142.07,2.72127562]
[1764266710658,6.60608345,142.1,141.94,75.0]
[1764266710848,23.93127562,142.08,141.99,19.03013962]
[1764266711047,0.66480783,142.07,142.0,7.97267302]
[1764266711361,2.72127562,142.05,142.01,5.2513974]
[1764266711665,0.66480783,142.04,142.02,4.5313974]
[1764266711865,3.38608345,142.04,141.98,1.96977601]
[1764266712035,8.80994492,142.02,141.98,1.96977601]
[1764266712235,8.80994492,142.02,141.97,2.72127562]
[1764266712236,8.80994492,142.0,141.96,1.96977601]
[1764266712438,8.80994492,141.98,141.96,4.69105163]
[1764266712664,3.88480783,141.97,141.96,8.96168418]
[1764266713060,3.88480783,141.97,141.96,7.19190817]
[1764266713251,3.88480783,141.97,141.96,16.00592199]
[1764266713847,3.88480783,141.97,141.96,8.81401382]
[1764266716076,3.88480783,141.97,141.96,8.61401382]
[1764266716646,3.88480783,141.97,141.96,13.27041053]
[1764266717566,12.69475275,141.97,141.96,1.76977601]
[1764266719271,12.69475275,141.97,141.94,8.81458793]
[1764266719567,12.69475275,141.97,141.95,6.21312283]
[1764266719752,12.69475275,141.97,141.96,1.56977601]
[1764266720959,12.69475275,141.97,141.96,4.64008814]
[1764266721166,12.69475275,141.97,141.96,11.68432595]
[1764266721865,20.17098406,141.97,141.96,4.64008814]
[1764266722074,20.17098406,141.97,141.96,11.68432595]
[1764266722253,12.97907589,141.97,141.96,11.68432595]
[1764266722655,20.17098406,141.97,141.96,11.68432595]
[1764266722855,9.47475275,141.97,141.96,11.68432595]
[1764266723051,13.67907589,141.97,141.96,4.64008814]
[1764266723376,13.67907589,141.97,141.91,5.90247715]
[1764266723377,9.09426806,141.96,141.91,8.61634821]
[1764266723679,8.80994492,141.93,141.92,4.63368654]
[1764266723877,12.67475275,141.93,141.92,4.63368654]
[1764266724762,12.00994492,141.93,141.92,4.63368654]
[1764266725263,12.00994492,141.93,141.92,11.67990976]
[1764266725468,11.64187194,141.93,141.92,11.67990976]
[1764266732085,0.28432314,141.94,141.92,11.67990976]
[1764266732260,3.86480783,141.93,141.91,1.56977601]
[1764266732460,3.86480783,141.93,141.92,4.63282435]
[1764266733989,12.67475275,141.93,141.92,4.63282435]
[1764266734385,0.66480783,141.93,141.92,11.67904757]
[1764266734557,3.2,141.93,141.92,30.86438164]
[1764266734990,3.86480783,141.93,141.92,30.86438164]
[1764266735363,3.86480783,141.93,141.92,4.63282435]
[1764266735364,16.39185686,141.93,141.92,4.63282435]
[1764266741492,0.28432314,141.92,141.89,8.61707129]
[1764266741695,9.47475275,141.91,141.9,4.64910664]
[1764266742375,9.47475275,141.91,141.9,11.69632298]
[1764266742791,0.66480783,141.91,141.9,11.69632298]
[1764266743099,3.2,141.91,141.9,11.69632298]
[1764266748094,3.2,141.91,141.9,16.88634602]
[1764266748498,5.91278097,141.91,141.9,16.88634602]
[1764266748688,3.2,141.91,141.9,16.88634602]
[1764266748883,15.69704903,141.91,141.9,4.64910664]
[1764266749805,16.36185686,141.91,141.9,4.64910664]
[1764266750005,8.80994492,141.9,141.89,7.0476969]
[1764266750214,12.21272589,141.9,141.89,16.93004685]
[1764266752791,12.21272589,141.9,141.89,11.73209904]
[1764266754110,12.21272589,141.9,141.89,17.63457619]
[1764266754610,9.49994492,141.9,141.89,17.63457619]
[1764266754905,11.23767268,141.9,141.89,17.63457619]
[1764266755110,11.23767268,141.9,141.89,11.73209904]
[1764266756722,11.23767268,141.9,141.89,7.0476969]
[1764266756906,14.41767268,141.9,141.89,11.77776472]
[1764266760012,14.41767268,141.9,141.89,7.0476969]
[1764266761219,11.23767268,141.9,141.89,7.0476969]
[1764266761440,3.18,141.9,141.89,7.7676969]
[1764266762494,3.18,141.9,141.89,7.0476969]
[1764266764219,0.66480783,141.91,141.89,7.0476969]
[1764266764424,3.18,141.9,141.89,7.7676969]
[1764266765627,3.18,141.9,141.89,7.0476969]
[1764266766016,4.91772776,141.9,141.89,7.0476969]
[1764266766324,3.18,141.9,141.89,7.0476969]
[1764266769522,3.18,141.9,141.89,7.7676969]
[1764266770229,3.18,141.9,141.89,7.7438939]
[1764266770418,1003.18,141.9,141.89,7.7438939]
[1764266771833,1003.18,141.9,141.89,7.0238939]
[1764266772003,1003.18,141.9,141.89,7.7438939]
[1764266773207,1003.18,141.9,141.89,7.0238939]
[1764266775424,1003.18,141.9,141.89,7.7438939]
[1764266775624,1003.18,141.9,141.89,7.0238939]
[1764266776928,1000.0,141.9,141.89,7.0238939]
[1764266777231,1003.16,141.9,141.89,7.0238939]
[1764266778235,999.28,141.9,141.89,29.09798943]
[1764266778444,1001.75,141.9,141.89,25.62253391]
[1764266778633,1001.75,141.9,141.89,26.64026167]
[1764266778933,1001.75,141.9,141.89,76.64026167]
[1764266781835,1001.75,141.9,141.89,76.09225363]
[1764266781836,821.12595871,141.9,141.89,76.09225363]
[1764266782019,498.2327303,141.9,141.89,101.71369305]
[1764266782221,144.33280728,141.9,141.89,101.71369305]
[1764266782531,0.72,142.0,141.98,1.56977601]
[1764266782735,3.16,141.99,141.98,1.56977601]
[1764266783627,0.72,142.0,141.98,1.56977601]
[1764266783807,3.16,141.99,141.98,8.61302153]
[1764266784012,1.38480783,142.02,142.0,1.56977601]
[1764266784209,0.2,142.12,141.98,7.04324552]
[1764266784210,9.52994492,142.04,142.01,1.56977601]
[1764266784416,3.16,142.03,142.01,1.56977601]
[1764266784623,3.88,142.03,142.01,1.56977601]
[1764266784823,0.72,142.03,142.01,1.56977601]
[1764266785026,0.72,142.05,142.02,1.73772776]
[1764266785225,3.16,142.04,142.02,8.77892351]
[1764266785513,1.38480783,142.05,142.03,1.56977601]
[1764266785713,3.88,142.04,142.03,1.56977601]
[1764266786021,0.92,142.08,142.05,1.56977601]
[1764266786216,3.16,142.07,142.05,3.30750377]
[1764266786709,3.16,142.07,142.06,1.56977601]
[1764266786906,0.2,142.08,142.07,1.56977601]
[1764266787119,3.36,142.08,142.07,10.34628746]
[1764266787916,3.36,142.08,142.07,1.56977601]
[1764266788116,4.08,142.08,142.07,1.56977601]
[1764266788417,4.08,142.08,142.06,1.56977601]
[1764266788619,0.92,142.08,142.07,1.56977601]
[1764266788831,4.08,142.08,142.07,1.56977601]
[1764266790932,4.08,142.08,142.05,1.56977601]
[1764266791141,0.72,142.07,142.05,1.56977601]
[1764266794545,0.2,142.08,142.06,1.73772776]
[1764266794721,0.2,142.08,142.05,42.51782047]
[1764266794722,0.2,142.08,142.07,1.56977601]
[1764266794922,0.2,142.08,142.07,3.30750377]
[1764266795127,3.36,142.08,142.07,3.30750377]
[1764266795324,3.36,142.08,142.07,1.56977601]
[1764266795325,4.08,142.08,142.07,1.56977601]
[1764266795534,4.08,142.08,142.07,3.30750377]
[1764266796240,4.08,142.08,142.07,1.56977601]
[1764266796440,0.92,142.08,142.07,1.56977601]
[1764266796645,4.08,142.08,142.07,1.56977601]
[1764266797639,4.08,142.08,142.06,10.34658412]
[1764266797826,4.08,142.08,142.07,1.56977601]
[1764266798330,3.36,142.08,142.07,1.56977601]
[1764266798834,0.2,142.08,142.07,1.56977601]
[1764266799039,3.36,142.08,142.07,1.56977601]
[1764266800036,4.74480783,142.08,142.07,1.56977601]
[1764266800213,4.24480783,142.08,142.07,1.56977601]
[1764266800610,2.86,142.08,142.07,1.56977601]
[1764266802240,3.54,142.08,142.07,1.56977601]
[1764266803690,0.68,142.08,142.07,1.56977601]
[1764266803942,3.84,142.08,142.07,1.56977601]
[1764266804841,3.84,142.08,142.06,1.56977601]
[1764266805037,0.68,142.07,142.06,1.56977601]
[1764266805423,3.84,142.07,142.06,1.56977601]
[1764266805843,3.84,142.07,142.05,1.56977601]
[1764266806036,0.68,142.06,142.05,1.56977601]